fUSD/lending_fUSD_20250513
["ID","MTS","AMOUNT","RATE_DAILY","PERIOD"]
[360919282,1747145447882,-1584.32,0.00010995,2]
[360919283,1747145447891,-400.0,0.00010995,2]
[360919284,1747145447900,-634.13,0.00010995,2]
[360919285,1747145447909,-400.0,0.00010995,2]
[360919286,1747145447919,-400.0,0.00010995,2]
[360919287,1747145447928,-2691.65,0.00010995,2]
[360919288,1747145447937,-878.26,0.00010995,2]
[360919289,1747145447946,-3286.38,0.00010995,2]
[360919290,1747145447955,-1353.68,0.00010995,2]
[360919291,1747145447964,-917.6,0.00010995,2]
[360919292,1747145447975,-2263.81,0.00010995,2]
[360919293,1747145447984,-400.0,0.00010995,2]
[360919294,1747145447993,-400.0,0.00010995,2]
[360919295,1747145448004,-400.0,0.00010995,2]
[360919296,1747145448013,-837.72,0.00010995,2]
[360919297,1747145448023,-1657.08,0.00010995,2]
[360919298,1747145448032,-862.47,0.00010995,2]
[360919299,1747145448041,-851.69,0.00010995,2]
[360919300,1747145448050,-400.0,0.00010995,2]
[360919301,1747145448059,-400.0,0.00010995,2]
[360919302,1747145448069,-400.0,0.00010995,2]
[360919303,1747145448078,-1790.17,0.00010995,2]
[360919304,1747145448087,-2964.19,0.00010995,2]
[360919305,1747145448096,-400.0,0.00010995,2]
[360919306,1747145448106,-400.0,0.00010995,2]
[360919307,1747145448115,-400.0,0.00010995,2]
[360919308,1747145448124,-529.82,0.00010995,2]
[360919309,1747145448134,-424.51,0.00010995,2]
[360919310,1747145448218,-400.0,0.00010995,2]
[360919311,1747145448229,-668.36,0.00010995,2]
[360919312,1747145448238,-400.0,0.00010995,2]
[360919313,1747145448247,-400.0,0.00010995,2]
[360919314,1747145448256,-400.0,0.00010995,2]
[360919315,1747145448265,-400.0,0.00010995,2]
[360919316,1747145448274,-1354.2,0.00010995,2]
[360919317,1747145448282,-400.0,0.00010995,2]
[360919318,1747145448291,-1131.71,0.00010995,2]
[360919319,1747145448300,-450.67459584,0.00010999,2]
[360919320,1747145448309,-461.24904025,0.00010999,2]
[360919321,1747145448322,-1118.09,0.00010999,2]
[360919322,1747145448331,-1118.09,0.00010999,2]
[360919323,1747145448341,-1118.09,0.00010999,2]
[360919324,1747145448350,-1118.09,0.00010999,2]
[360919325,1747145448360,-1118.09,0.00010999,2]
[360919326,1747145448370,-1118.09,0.00010999,2]
[360919327,1747145448379,-1118.09,0.00010999,2]
[360919328,1747145448389,-1118.09,0.00010999,2]
[360919329,1747145448399,-1118.09,0.00010999,2]
[360919330,1747145448408,-1118.09,0.00010999,2]
[360919331,1747145448417,-1118.09,0.00010999,2]
[360919332,1747145448426,-1118.09,0.00010999,2]
[360919333,1747145448435,-1118.09,0.00010999,2]
[360919334,1747145448445,-1118.09,0.00010999,2]
[360919335,1747145448454,-1118.09,0.00010999,2]
[360919336,1747145448463,-1118.09,0.00010999,2]
[360919337,1747145448477,-1118.09,0.00010999,2]
[360919338,1747145448487,-1118.09,0.00010999,2]
[360919339,1747145448497,-1118.09,0.00010999,2]
[360919340,1747145448506,-1118.09,0.00010999,2]
[360919341,1747145448516,-1118.09,0.00010999,2]
[360919342,1747145448526,-1118.09,0.00010999,2]
[360919343,1747145448536,-1118.09,0.00010999,2]
[360919344,1747145448545,-1118.31966159,0.00010999,2]
[360919345,1747145448558,-521.64,0.00010999,2]
[360919346,1747145448568,-521.64,0.00010999,2]
[360919347,1747145448578,-521.64,0.00010999,2]
[360919348,1747145448587,-521.64,0.00010999,2]
[360919349,1747145448596,-521.64,0.00010999,2]
[360919350,1747145448606,-521.64,0.00010999,2]
[360919351,1747145448615,-521.64,0.00010999,2]
[360919352,1747145448625,-521.64,0.00010999,2]
[360919353,1747145448636,-521.64,0.00010999,2]
[360919354,1747145448647,-521.64,0.00010999,2]
[360919355,1747145448656,-521.64,0.00010999,2]
[360919356,1747145448667,-521.64,0.00010999,2]
[360919357,1747145448676,-521.64,0.00010999,2]
[360919358,1747145448685,-521.64,0.00010999,2]
[360919359,1747145448694,-521.64,0.00010999,2]
[360919360,1747145448704,-521.64,0.00010999,2]
[360919361,1747145448713,-521.64,0.00010999,2]
[360919362,1747145448724,-521.64,0.00010999,2]
[360919363,1747145448734,-521.64,0.00010999,2]
[360919364,1747145448744,-521.64,0.00010999,2]
[360919365,1747145448753,-521.64,0.00010999,2]
[360919366,1747145448762,-521.74805425,0.00010999,2]
[360919367,1747145448771,-500.0,0.00010999,2]
[360919368,1747145448781,-500.0,0.00010999,2]
[360919369,1747145448790,-500.0,0.00010999,2]
[360919370,1747145448799,-500.0,0.00010999,2]
[360919371,1747145448809,-500.0,0.00010999,2]
[360919372,1747145448818,-500.0,0.00010999,2]
[360919373,1747145448827,-500.0,0.00010999,2]
[360919374,1747145448836,-500.0,0.00010999,2]
[360919375,1747145448846,-500.0,0.00010999,2]
[360919376,1747145448855,-500.0,0.00010999,2]
[360919377,1747145448865,-500.0,0.00010999,2]
[360919378,1747145448875,-500.0,0.00010999,2]
[360919379,1747145448884,-500.0,0.00010999,2]
[360919380,1747145448893,-500.0,0.00010999,2]
[360919381,1747145448903,-500.0,0.00010999,2]
[360919382,1747145448912,-500.0,0.00010999,2]
[360919383,1747145448921,-500.0,0.00010999,2]
[360919384,1747145448930,-412.35,0.00010999,2]
[360919385,1747145448939,-2510.34,0.00010999,2]
[360919386,1747145448948,-28669.91,0.00010999,2]
[360919387,1747145448957,-1532.86,0.00010999,2]
[360919388,1747145448966,-5283.71,0.00010999,2]
[360919389,1747145448977,-10126.62,0.00010999,2]
[360919390,1747145448986,-619.41,0.00010999,2]
[360919391,1747145448995,-3579.9,0.00010999,2]
[360919392,1747145449005,-4432.54,0.00010999,2]
[360919393,1747145449014,-300.0,0.00010999,2]
[360919394,1747145449023,-300.0,0.00010999,2]
[360919395,1747145449033,-300.0,0.00010999,2]
[360919396,1747145449043,-592.0,0.00010999,2]
[360919397,1747145449052,-222.08274684,0.00011,2]
[360919398,1747145449061,-111080.13466289,0.00011,2]
[360919399,1747145449070,-4163602.71672823,0.00011,2]
[360919400,1747145449618,-195.58747443,0.00010894,2]
[360919401,1747145449628,-12555.66744077,0.00011,2]
[360919402,1747145450944,-195.58747443,0.00010894,2]
[360919403,1747145450954,-2720.89171875,0.00010894,2]
[360919404,1747145450964,-400.0,0.00010992,2]
[360919405,1747145450976,-454.55,0.00010992,2]
[360919406,1747145450987,-400.0,0.00010993,2]
[360919407,1747145450997,-320.35612839,0.00010993,2]
[360919408,1747145452034,-299.2419,0.00010893,2]
[360919409,1747145452045,-79.64387161,0.00010993,2]
[360919410,1747145452054,-258.08894524,0.00010993,2]
[360919411,1747145452063,-472.11,0.00010993,2]
[360919412,1747145452073,-400.0,0.00010994,2]
[360919413,1747145452082,-400.0,0.00010994,2]
[360919414,1747145452091,-854.98,0.00010994,2]
[360919415,1747145452100,-400.0,0.00010994,2]
[360919416,1747145452110,-7173.86328316,0.00011,2]
[360919417,1747145452144,-535.2,0.00011,2]
[360919418,1747145452156,-5077.4999995,0.00011,2]
[360919419,1747145452167,-3607.35545461,0.00011,2]
[360919420,1747145452177,-6357.68300038,0.00011,2]
[360919421,1747145452195,-10147.54857416,0.00011,2]
[360919422,1747145490782,908.412277,0.00028,120]
[360919425,1747145879009,242.165835,9.952e-05,2]
[360919426,1747145931221,1333.0,0.00026137,120]
[360919428,1747146320713,189.28600869,9e-05,2]
[360919429,1747146337301,834.04804638,9e-05,2]
[360919430,1747146351846,1127.95,8.219e-05,2]
[360919431,1747146356351,430.99431959,6.94e-05,2]
[360919432,1747146356373,408.82823908,6.94e-05,2]
[360919433,1747146368621,1992.26426651,8e-05,2]
[360919435,1747146412337,5086.5396332,0.0001,7]
[360919452,1747146452161,423.35170407,9.947e-05,2]
[360919453,1747146452186,576.64829593,9.947e-05,2]
[360919474,1747146611390,200.0,9.943e-05,2]
[360919487,1747146631715,-249.05,0.00010002,2]
[360919488,1747146631725,-525.05,0.00010043,2]
[360919489,1747146631737,-1200.0,0.00010148,2]
[360919490,1747146631747,-300.0,0.00010148,2]
[360919491,1747146631757,-10342.9473775,0.00010149,2]
[360919492,1747146631769,-3237.9326225,0.00010149,2]
[360919493,1747146631779,-455.40518429,0.0001025,2]
[360919494,1747146631791,-342.63599996,0.0001025,2]
[360919495,1747146631886,-1566.89881575,0.0001025,2]
[360919496,1747146631896,-207.4,0.0001026,2]
[360919497,1747146631906,-1551.94969045,0.00010266,2]
[360919498,1747146631919,-14150.00030955,0.00010266,2]
[360919499,1747146631928,-1127.95,0.00010473,2]
[360919500,1747146631938,-500.0,0.0001074,2]
[360919501,1747146631947,-317.5519,0.00010794,2]
[360919502,1747146631957,-233.15034688,0.000108,2]
[360919503,1747146631966,-1937.8189,0.00010891,2]
[360919504,1747146631976,-845.0743,0.00010892,2]
[360919505,1747146631989,-390.2427,0.00010893,2]
[360919506,1747146631998,-1000.0,0.00010893,2]
[360919507,1747146632007,-150.0,0.00010893,2]
[360919508,1747146632017,-999.0168,0.00010894,2]
[360919509,1747146632027,-6740.6094,0.00010894,2]
[360919510,1747146632037,-51387.95903549,0.00010894,2]
[360919511,1747146632049,-1631.95518359,0.00010894,2]
[360919512,1747146632060,-2016.30819884,0.00010894,2]
[360919517,1747146636519,-2860.33960385,0.00010894,2]
[360919518,1747146636614,-3452.30351771,0.00010894,2]
[360919519,1747146636634,-616.31106874,0.00010894,2]
[360919619,1747146637692,-17761.37629178,0.00010894,2]
[360919621,1747146637702,-3089.023,0.000109,2]
[360919623,1747146637711,-9236.14438407,0.000109,2]
[360919625,1747146637720,-287.61899177,0.00010985,2]
[360919627,1747146637730,-155.0,0.00010986,2]
[360919629,1747146637743,-668.65185757,0.00010986,2]
[360919631,1747146637752,-400.0,0.0001099,2]
[360919633,1747146637762,-400.0,0.0001099,2]
[360919635,1747146637771,-400.0,0.0001099,2]
[360919637,1747146637783,-400.0,0.0001099,2]
[360919639,1747146637796,-400.0,0.0001099,2]
[360919641,1747146637809,-400.0,0.0001099,2]
[360919643,1747146637821,-978.97,0.0001099,2]
[360919645,1747146637833,-268.64203244,0.0001099,2]
[360919647,1747146637842,-400.0,0.0001099,2]
[360919649,1747146637851,-400.0,0.0001099,2]
[360919651,1747146637861,-400.0,0.0001099,2]
[360919653,1747146637870,-441.37,0.0001099,2]
[360919655,1747146637880,-1195.46,0.0001099,2]
[360919657,1747146637889,-400.0,0.0001099,2]
[360919659,1747146637898,-892.82,0.0001099,2]
[360919661,1747146637907,-334.95468298,0.0001099,2]
[360919663,1747146637917,-470.67923448,0.0001099,2]
[360919665,1747146637926,-2903.95,0.0001099,2]
[360919667,1747146637936,-400.0,0.0001099,2]
[360919669,1747146637946,-791.023451,0.0001099,2]
[360919671,1747146637955,-400.0,0.0001099,2]
[360919672,1747146637964,-400.0,0.0001099,2]
[360919674,1747146637974,-908.77,0.0001099,2]
[360919676,1747146637983,-4362.16,0.0001099,2]
[360919678,1747146637997,-544.86,0.0001099,2]
[360919680,1747146638007,-400.0,0.00010991,2]
[360919682,1747146638018,-505.1007295,0.00010991,2]
[360919684,1747146638027,-400.0,0.00010991,2]
[360919686,1747146638037,-400.0,0.00010991,2]
[360919688,1747146638047,-400.0,0.00010991,2]
[360919690,1747146638056,-400.0,0.00010991,2]
[360919692,1747146638065,-400.0,0.00010991,2]
[360919694,1747146638075,-418.2,0.00010991,2]
[360919696,1747146638084,-400.0,0.00010991,2]
[360919698,1747146638093,-553.38,0.00010991,2]
[360919700,1747146638103,-400.0,0.00010991,2]
[360919702,1747146638114,-991.48,0.00010991,2]
[360919704,1747146638124,-1725.6,0.00010991,2]
[360919706,1747146638133,-400.0,0.00010991,2]
[360919708,1747146638143,-400.0,0.00010991,2]
[360919710,1747146638152,-448.95,0.00010991,2]
[360919712,1747146638162,-400.0,0.00010991,2]
[360919714,1747146638172,-400.0,0.00010991,2]
[360919716,1747146638182,-400.0,0.00010991,2]
[360919718,1747146638195,-537.38,0.00010991,2]
[360919720,1747146638204,-400.0,0.00010991,2]
[360919722,1747146638214,-400.0,0.00010991,2]
[360919724,1747146638223,-400.0,0.00010991,2]
[360919726,1747146638233,-400.0,0.00010991,2]
[360919729,1747146638249,-400.0,0.00010991,2]
[360919731,1747146638258,-400.0,0.00010991,2]
[360919734,1747146638269,-400.0,0.00010991,2]
[360919737,1747146638278,-400.0,0.00010991,2]
[360919740,1747146638287,-400.0,0.00010991,2]
[360919743,1747146638297,-400.0,0.00010991,2]
[360919746,1747146638306,-1564.94,0.00010991,2]
[360919749,1747146638316,-400.0,0.00010991,2]
[360919752,1747146638325,-507.88,0.00010991,2]
[360919755,1747146638335,-400.0,0.00010991,2]
[360919757,1747146638344,-730.92,0.00010991,2]
[360919759,1747146638353,-520.13,0.00010991,2]
[360919761,1747146638362,-400.0,0.00010991,2]
[360919763,1747146638372,-467.63,0.00010991,2]
[360919765,1747146638382,-400.0,0.00010991,2]
[360919767,1747146638391,-1700.81,0.00010991,2]
[360919769,1747146638401,-400.0,0.00010991,2]
[360919771,1747146638411,-784.46,0.00010991,2]
[360919773,1747146638420,-400.0,0.00010991,2]
[360919775,1747146638430,-635.12,0.00010991,2]
[360919777,1747146638440,-400.0,0.00010991,2]
[360919779,1747146638450,-628.77,0.00010991,2]
[360919781,1747146638459,-1188.96,0.00010991,2]
[360919783,1747146638468,-3595.36,0.00010991,2]
[360919785,1747146638478,-400.0,0.00010991,2]
[360919787,1747146638490,-446.94,0.00010991,2]
[360919789,1747146638500,-400.0,0.00010991,2]
[360919791,1747146638509,-504.19,0.00010991,2]
[360919793,1747146638519,-1000.73,0.00010991,2]
[360919795,1747146638529,-2847.41,0.00010991,2]
[360919797,1747146638538,-2362.75,0.00010991,2]
[360919798,1747146638547,-400.0,0.00010991,2]
[360919800,1747146638557,-400.0,0.00010991,2]
[360919802,1747146638567,-400.0,0.00010991,2]
[360919804,1747146638576,-400.0,0.00010991,2]
[360919806,1747146638585,-400.0,0.00010991,2]
[360919808,1747146638594,-400.0,0.00010991,2]
[360919810,1747146638604,-1365.44,0.00010991,2]
[360919812,1747146638613,-400.0,0.00010991,2]
[360919814,1747146638623,-590.85,0.00010991,2]
[360919816,1747146638632,-1252.32,0.00010991,2]
[360919817,1747146638641,-400.0,0.00010991,2]
[360919818,1747146638650,-400.0,0.00010991,2]
[360919819,1747146638659,-400.0,0.00010991,2]
[360919820,1747146638669,-695.04,0.00010991,2]
[360919821,1747146638679,-2075.78,0.00010991,2]
[360919822,1747146638688,-5419.998694,0.00010991,2]
[360919823,1747146638698,-1674.38,0.00010991,2]
[360919824,1747146638707,-545.890206,0.00010991,2]
[360919825,1747146638717,-597.88,0.00010991,2]
[360919826,1747146638727,-400.0,0.00010991,2]
[360919827,1747146638739,-400.0,0.00010991,2]
[360919828,1747146638749,-443.35,0.00010991,2]
[360919829,1747146638759,-420.61,0.00010991,2]
[360919830,1747146638769,-1400.51,0.00010991,2]
[360919831,1747146638778,-400.0,0.00010991,2]
[360919832,1747146638789,-1051.71,0.00010991,2]
[360919833,1747146638799,-448.34,0.00010991,2]
[360919834,1747146638808,-438.84,0.00010991,2]
[360919835,1747146638818,-587.13,0.00010991,2]
[360919836,1747146638829,-1405.26,0.00010991,2]
[360919837,1747146638839,-717.79,0.00010991,2]
[360919838,1747146638849,-400.0,0.00010991,2]
[360919839,1747146638858,-563.8,0.00010991,2]
[360919840,1747146638868,-833.83,0.00010991,2]
[360919841,1747146638878,-400.0,0.00010991,2]
[360919842,1747146638887,-400.0,0.00010991,2]
[360919843,1747146638897,-400.0,0.00010991,2]
[360919844,1747146638906,-435.29,0.00010991,2]
[360919845,1747146638916,-702.79,0.00010991,2]
[360919846,1747146638926,-527.52,0.00010991,2]
[360919847,1747146638936,-2380.44,0.00010991,2]
[360919848,1747146638945,-646.86,0.00010991,2]
[360919849,1747146638954,-400.0,0.00010991,2]
[360919850,1747146638964,-1023.62,0.00010991,2]
[360919851,1747146638974,-584.29,0.00010991,2]
[360919852,1747146638996,-400.0,0.00010991,2]
[360919853,1747146639006,-400.0,0.00010991,2]
[360919854,1747146639016,-663.31,0.00010991,2]
[360919855,1747146639026,-1503.42,0.00010991,2]
[360919856,1747146639035,-2197.41,0.00010991,2]
[360919858,1747146639045,-400.0,0.00010991,2]
[360919859,1747146639054,-2059.19,0.00010991,2]
[360919861,1747146639063,-1157.32,0.00010991,2]
[360919862,1747146639074,-790.6,0.00010991,2]
[360919863,1747146639083,-5010.29,0.00010991,2]
[360919864,1747146639093,-748.42,0.00010991,2]
[360919865,1747146639102,-565.92,0.00010991,2]
[360919866,1747146639112,-589.14,0.00010991,2]
[360919867,1747146639122,-397.1532751,0.00010991,2]
[360919868,1747146639133,-455.57,0.00010991,2]
[360919869,1747146639145,-400.0,0.00010991,2]
[360919870,1747146639163,-1336.16,0.00010991,2]
[360919871,1747146639176,-597.97,0.00010991,2]
[360919872,1747146639187,-539.27,0.00010991,2]
[360919873,1747146639197,-400.0,0.00010991,2]
[360919874,1747146639206,-400.0,0.00010991,2]
[360919875,1747146639215,-414.73,0.00010991,2]
[360919876,1747146639227,-400.0,0.00010991,2]
[360919877,1747146639239,-846.42,0.00010991,2]
[360919878,1747146639248,-711.66,0.00010991,2]
[360919879,1747146639258,-1412.33,0.00010991,2]
[360919880,1747146639270,-998.92,0.00010991,2]
[360919881,1747146639279,-611.48,0.00010991,2]
[360919883,1747146639289,-956.44,0.00010991,2]
[360919885,1747146639298,-2094.19,0.00010991,2]
[360919887,1747146639307,-400.0,0.00010991,2]
[360919889,1747146639317,-2197.15,0.00010991,2]
[360919891,1747146639326,-400.0,0.00010991,2]
[360919893,1747146639335,-2087.96,0.00010991,2]
[360919895,1747146639344,-426.07,0.00010991,2]
[360919897,1747146639354,-496.73,0.00010991,2]
[360919899,1747146639364,-428.62,0.00010991,2]
[360919901,1747146639373,-1109.72,0.00010991,2]
[360919903,1747146639383,-1339.28,0.00010991,2]
[360919905,1747146639392,-4481.72,0.00010991,2]
[360919907,1747146639401,-615.86,0.00010991,2]
[360919909,1747146639411,-400.0,0.00010991,2]
[360919911,1747146639420,-400.0,0.00010991,2]
[360919913,1747146639430,-793.18,0.00010991,2]
[360919915,1747146639439,-2281.42,0.00010991,2]
[360919917,1747146639449,-400.0,0.00010991,2]
[360919919,1747146639458,-400.0,0.00010991,2]
[360919921,1747146639468,-2539.59,0.00010991,2]
[360919923,1747146639478,-550.58,0.00010991,2]
[360919925,1747146639488,-400.0,0.00010991,2]
[360919927,1747146639497,-3018.75,0.00010991,2]
[360919929,1747146639506,-400.0,0.00010991,2]
[360919930,1747146639516,-1174.42,0.00010991,2]
[360919931,1747146639526,-1342.17,0.00010991,2]
[360919932,1747146639535,-590.17,0.00010991,2]
[360919934,1747146639546,-1426.5,0.00010991,2]
[360919935,1747146639556,-1365.77,0.00010991,2]
[360919937,1747146639566,-713.06,0.00010991,2]
[360919938,1747146639576,-795.27,0.00010991,2]
[360919939,1747146639586,-400.0,0.00010991,2]
[360919940,1747146639596,-400.0,0.00010991,2]
[360919941,1747146639606,-400.0,0.00010992,2]
[360919942,1747146639616,-400.0,0.00010992,2]
[360919944,1747146639627,-400.0,0.00010992,2]
[360919945,1747146639636,-400.0,0.00010992,2]
[360919946,1747146639647,-400.0,0.00010992,2]
[360919947,1747146639657,-540.19,0.00010992,2]
[360919949,1747146639667,-400.0,0.00010992,2]
[360919951,1747146639677,-400.0,0.00010992,2]
[360919953,1747146639686,-400.0,0.00010992,2]
[360919955,1747146639696,-400.0,0.00010992,2]
[360919957,1747146639706,-400.0,0.00010992,2]
[360919960,1747146639715,-400.0,0.00010992,2]
[360919963,1747146639725,-400.0,0.00010992,2]
[360919966,1747146639734,-400.0,0.00010992,2]
[360919968,1747146639745,-464.40215216,0.00010992,2]
[360919970,1747146639755,-506.13218772,0.00010992,2]
[360919972,1747146639764,-430.42169921,0.00010992,2]
[360919975,1747146639774,-460.07900053,0.00010992,2]
[360919978,1747146639784,-277.2349497,0.00010992,2]
[360919983,1747146639801,-122.7650503,0.00010992,2]
[360919985,1747146639811,-400.0,0.00010992,2]
[360919987,1747146639821,-400.0,0.00010992,2]
[360919989,1747146639830,-400.0,0.00010992,2]
[360919991,1747146639839,-519.84577947,0.00010992,2]
[360919993,1747146639849,-269.46791177,0.00010992,2]
[360919995,1747146639861,-243.84016163,0.00010992,2]
[360919997,1747146639870,-458.19456859,0.00010992,2]
[360919999,1747146639879,-496.27920888,0.00010992,2]
[360920001,1747146639889,-400.0,0.00010992,2]
[360920003,1747146639898,-290.93891347,0.00010992,2]
[360920005,1747146639909,-430.15786004,0.00010992,2]
[360920007,1747146639918,-400.0,0.00010992,2]
[360920009,1747146639928,-400.0,0.00010992,2]
[360920011,1747146639937,-500.0,0.00010992,2]
[360920013,1747146639946,-217.48385166,0.00010992,2]
[360920015,1747146639956,-411.87166165,0.00010992,2]
[360920017,1747146639965,-400.0,0.00010992,2]
[360920019,1747146639975,-400.0,0.00010992,2]
[360920021,1747146639984,-250.0,0.00010992,2]
[360920023,1747146639997,-400.0,0.00010992,2]
[360920025,1747146640006,-400.0,0.00010992,2]
[360920027,1747146640015,-33.47977408,0.00010992,2]
[360920031,1747146640042,-366.52022592,0.00010992,2]
[360920033,1747146640051,-400.0,0.00010992,2]
[360920035,1747146640060,-241.87538757,0.00010992,2]
[360920037,1747146640072,-160.26931576,0.00010992,2]
[360920039,1747146640081,-167.51622088,0.00010992,2]
[360920041,1747146640090,-400.0,0.00010992,2]
[360920043,1747146640100,-526.93355489,0.00010992,2]
[360920045,1747146640109,-499.1281089,0.00010992,2]
[360920047,1747146640118,-400.0,0.00010992,2]
[360920049,1747146640127,-402.5104399,0.00010992,2]
[360920051,1747146640137,-401.08988219,0.00010992,2]
[360920053,1747146640147,-402.39896548,0.00010992,2]
[360920055,1747146640156,-400.0,0.00010992,2]
[360920057,1747146640166,-400.0,0.00010992,2]
[360920059,1747146640175,-403.3948829,0.00010992,2]
[360920061,1747146640188,-400.0,0.00010992,2]
[360920063,1747146640199,-679.25,0.00010992,2]
[360920065,1747146640208,-413.49651247,0.00010992,2]
[360920067,1747146640219,-400.0,0.00010992,2]
[360920069,1747146640228,-400.0,0.00010992,2]
[360920071,1747146640239,-400.0,0.00010992,2]
[360920073,1747146640249,-400.0,0.00010992,2]
[360920075,1747146640258,-400.0,0.00010992,2]
[360920077,1747146640268,-400.0,0.00010992,2]
[360920079,1747146640278,-400.0,0.00010992,2]
[360920081,1747146640289,-402.33490798,0.00010992,2]
[360920082,1747146640298,-152.32193822,0.00010992,2]
[360920084,1747146640308,-400.0,0.00010992,2]
[360920086,1747146640317,-400.0,0.00010992,2]
[360920088,1747146640327,-365.81172947,0.00010992,2]
[360920090,1747146640336,-400.0,0.00010992,2]
[360920092,1747146640345,-402.59594909,0.00010992,2]
[360920094,1747146640355,-400.0,0.00010992,2]
[360920096,1747146640364,-400.0,0.00010992,2]
[360920098,1747146640373,-400.0,0.00010992,2]
[360920100,1747146640383,-400.0,0.00010992,2]
[360920102,1747146640393,-759.82,0.00010992,2]
[360920104,1747146640402,-400.0,0.00010992,2]
[360920106,1747146640411,-831.0,0.00010992,2]
[360920108,1747146640421,-400.0,0.00010992,2]
[360920110,1747146640430,-400.0,0.00010992,2]
[360920113,1747146640439,-2295.44,0.00010992,2]
[360920116,1747146640448,-400.0,0.00010992,2]
[360920151,1747146640753,-400.0,0.00010992,2]
[360920153,1747146640763,-400.0,0.00010992,2]
[360920155,1747146640773,-221.55721957,0.00010992,2]
[360920157,1747146640782,-400.0,0.00010992,2]
[360920159,1747146640791,-400.0,0.00010992,2]
[360920161,1747146640801,-400.0,0.00010992,2]
[360920163,1747146640811,-400.0,0.00010992,2]
[360920165,1747146640820,-400.0,0.00010992,2]
[360920167,1747146640830,-400.0,0.00010992,2]
[360920169,1747146640840,-400.0,0.00010992,2]
[360920170,1747146640849,-400.0,0.00010992,2]
[360920173,1747146640859,-400.0,0.00010992,2]
[360920175,1747146640869,-505.75,0.00010992,2]
[360920176,1747146640879,-400.0,0.00010992,2]
[360920178,1747146640888,-400.0,0.00010992,2]
[360920180,1747146640899,-400.0,0.00010992,2]
[360920182,1747146640908,-400.0,0.00010992,2]
[360920184,1747146640918,-447.58,0.00010992,2]
[360920186,1747146640927,-500.22,0.00010992,2]
[360920188,1747146640937,-400.0,0.00010992,2]
[360920190,1747146640946,-328.26989138,0.00010992,2]
[360920192,1747146640957,-400.0,0.00010992,2]
[360920194,1747146640966,-400.0,0.00010992,2]
[360920196,1747146640975,-400.0,0.00010992,2]
[360920198,1747146640985,-209.14170879,0.00010992,2]
[360920208,1747146641578,-190.85829121,0.00010992,2]
[360920209,1747146641588,-400.0,0.00010992,2]
[360920210,1747146641598,-400.0,0.00010992,2]
[360920211,1747146641607,-400.0,0.00010992,2]
[360920212,1747146641617,-400.0,0.00010992,2]
[360920213,1747146641626,-400.0,0.00010992,2]
[360920214,1747146641635,-400.0,0.00010992,2]
[360920215,1747146641645,-400.0,0.00010992,2]
[360920216,1747146641654,-423.01,0.00010992,2]
[360920217,1747146641664,-821.41,0.00010992,2]
[360920218,1747146641673,-400.0,0.00010992,2]
[360920219,1747146641682,-400.0,0.00010992,2]
[360920220,1747146641691,-400.0,0.00010992,2]
[360920221,1747146641700,-394.41895388,0.00010992,2]
[360920222,1747146641710,-272.26134535,0.00010992,2]
[360920224,1747146641722,-429.46,0.00010992,2]